Workbook

Sheet Instruções
B4: Instruções para utilização da Planilha | C4: Instruções para utilização da Planilha
B6: 1º | C6: Insira as informações na aba "1.Input " e obtenha o resultado do estudo na aba "2.Resultado"
B7: 2º | C7: Habilite as macros para permitir a execução das funcionalidades da planilha

Sheet 1.Input
D2: Custo Frota Própria | H2: ='2.Resultado'!$G$15 -> 24832 | J2: ="Saving: "& TEXT((H3/H2-1)*-1,"0%") -> Saving: -18%
D3: Custo Frota Locada | H3: ='2.Resultado'!$G$22 -> 29224.8
B5: Os campos com fundo "Amarelo" podem ser alterados de acordo com os dados da empresa
C7: VALORES FROTA LOCADA
C9: VALOR DA PROPOSTA DE LOCAÇÃO
C11: Valor mensal do aluguel | D11: 1230
C14: VALORES FROTA PRÓPRIA
B16: 1 | C16: VALOR DE COMPRA DO VEÍCULO (AQUISIÇÃO)
C18: 1.1 Valor de mercado do veículo | D18: 40340
C19: 1.2 % desconto na compra | D19: 0.12
C20: 1.3 Valor da compra com desconto | D20: =D18*(1-D19) -> 35499.2
C21: 1.4 Frete entrega do veículo | D21: 150
B24: 2 | C24: CUSTOS PARA MANTER O VEÍCULO (CUSTO FROTA) [VALOR ANUAL] | J24: Ano 1 | K24: Ano 2 | L24: Ano 3 | M24: Total
J25: =IFERROR(INDEX(TBL_TEXTOS_AJUDA[],CP_SELECAO_ITEM,MATCH(J24,TBL_TEXTOS_AJUDA[#Headers],0)),"") -> 1419.968 | K25: =IFERROR(INDEX(TBL_TEXTOS_AJUDA[],CP_SELECAO_ITEM,MATCH(K24,TBL_TEXTOS_AJUDA[#Headers],0)),"") -> 1313.978667 | L25: =IFERROR(INDEX(TBL_TEXTOS_AJUDA[],CP_SELECAO_ITEM,MATCH(L24,TBL_TEXTOS_AJUDA[#Headers],0)),"") -> 1207.989333 | M25: =SUM(J25:L25) -> 3941.936
B26: 1 | C26: 2.1 Contratação de Seguro [ % sobre o Valor de Compra ] - Anual | D26: 0.04 | I26: =IFERROR(INDEX(TBL_TEXTOS_AJUDA[],CP_SELECAO_ITEM,MATCH("Texto Ajuda",TBL_TEXTOS_AJUDA[#Headers],0)),"") -> Custo de apólices de seguro que protegem o carro, passageiros e terceiros. A média de Seguro pode chegar até 7% do valor do veículo, sem contar a Franquia. Porém, para o presente estudo estamos considerando 4%, visto que as Seguradoras concedem descontos para empresas. Conforme cálculo acima, o valor do seguro apresenta uma redução anual em função da desvalorização do veículo.
B27: 2 | C27: 2.2 IPVA + Licenciamento [ % sobre o Valor de Compra ] - Anual | D27: 0.045
B28: 3 | C28: 2.3 Manutenção Preventiva e Corretiva - Anual | D28: 645.984
B29: 4 | C29: 2.4 Custo administrativo com a gestão da frota por Veículo - Anual | D29: 1800
B30: 5 | C30: 2.5 Frota reserva - Anual | D30: 484.08
H31: =IFERROR(HYPERLINK(IFERROR(INDEX(TBL_TEXTOS_AJUDA[],CP_SELECAO_ITEM,MATCH("Link",TBL_TEXTOS_AJUDA[#Headers],0)),""),IFERROR(INDEX(TBL_TEXTOS_AJUDA[],CP_SELECAO_ITEM,MATCH("Link_Amigavel",TBL_TEXTOS_AJUDA[#Headers],0)),"")),"") -> Veja o comparativo de Seguro da Quadro Rodas
B33: 3 | C33: DESPESAS COM A VENDA DO VEÍCULO | J33: Ano 1 | K33: Ano 2 | L33: Ano 3 | M33: Ano 4
J34: =IFERROR(INDEX(TBL_TEXTOS_AJUDA[],CP_SELECAO_ITEM,MATCH(J33,TBL_TEXTOS_AJUDA[#Headers],0)),"") -> 1419.968 | K34: =IFERROR(INDEX(TBL_TEXTOS_AJUDA[],CP_SELECAO_ITEM,MATCH(K33,TBL_TEXTOS_AJUDA[#Headers],0)),"") -> 1313.978667 | L34: =IFERROR(INDEX(TBL_TEXTOS_AJUDA[],CP_SELECAO_ITEM,MATCH(L33,TBL_TEXTOS_AJUDA[#Headers],0)),"") -> 1207.989333 | M34: =IFERROR(INDEX(TBL_TEXTOS_AJUDA[],CP_SELECAO_ITEM,MATCH(M33,TBL_TEXTOS_AJUDA[#Headers],0)),"") -> 0
B35: 6 | C35: 3.1 Valor Estimado para a venda do veículo | D35: 27550 | I35: =IFERROR(INDEX(TBL_TEXTOS_AJUDA[],CP_SELECAO_ITEM,MATCH("Texto Ajuda",TBL_TEXTOS_AJUDA[#Headers],0)),"") -> Custo de apólices de seguro que protegem o carro, passageiros e terceiros. A média de Seguro pode chegar até 7% do valor do veículo, sem contar a Franquia. Porém, para o presente estudo estamos considerando 4%, visto que as Seguradoras concedem descontos para empresas. Conforme cálculo acima, o valor do seguro apresenta uma redução anual em função da desvalorização do veículo.
B36: 7 | C36: 3.2 Custos do processo de venda | D36: 350
B37: 8 | C37: 3.3 Manutenção para venda | D37: 710
B38: 9 | C38: 3.4 Frete desmobilização do veículo | D38: 350
H39: =IFERROR(HYPERLINK(IFERROR(INDEX(TBL_TEXTOS_AJUDA[],CP_SELECAO_ITEM,MATCH("Link",TBL_TEXTOS_AJUDA[#Headers],0)),""),IFERROR(INDEX(TBL_TEXTOS_AJUDA[],CP_SELECAO_ITEM,MATCH("Link_Amigavel",TBL_TEXTOS_AJUDA[#Headers],0)),"")),"") -> Veja o comparativo de Seguro da Quadro Rodas
B41: 4 | C41: VALORES ECONÔMICOS/FINANCEIROS/FISCAIS | J41: Ano 1 | K41: Ano 2 | L41: Ano 3 | M41: Total
J42: =IFERROR(INDEX(TBL_TEXTOS_AJUDA[],CP_SELECAO_ITEM,MATCH(J41,TBL_TEXTOS_AJUDA[#Headers],0)),"") -> 1419.968 | K42: =IFERROR(INDEX(TBL_TEXTOS_AJUDA[],CP_SELECAO_ITEM,MATCH(K41,TBL_TEXTOS_AJUDA[#Headers],0)),"") -> 1313.978667 | L42: =IFERROR(INDEX(TBL_TEXTOS_AJUDA[],CP_SELECAO_ITEM,MATCH(L41,TBL_TEXTOS_AJUDA[#Headers],0)),"") -> 1207.989333 | M42: =SUM(J42:L42) -> 3941.936
B43: 10 | C43: 4.1 Imposto de Renda + Contribuição Social - Anual | D43: 0.34 | I43: =IFERROR(INDEX(TBL_TEXTOS_AJUDA[],CP_SELECAO_ITEM,MATCH("Texto Ajuda",TBL_TEXTOS_AJUDA[#Headers],0)),"") -> Custo de apólices de seguro que protegem o carro, passageiros e terceiros. A média de Seguro pode chegar até 7% do valor do veículo, sem contar a Franquia. Porém, para o presente estudo estamos considerando 4%, visto que as Seguradoras concedem descontos para empresas. Conforme cálculo acima, o valor do seguro apresenta uma redução anual em função da desvalorização do veículo.
B44: 11 | C44: 4.2 Custo Oportunidade [ % sobre o item 1.3 ] - Anual | D44: 0.07
H48: =IFERROR(HYPERLINK(IFERROR(INDEX(TBL_TEXTOS_AJUDA[],CP_SELECAO_ITEM,MATCH("Link",TBL_TEXTOS_AJUDA[#Headers],0)),""),IFERROR(INDEX(TBL_TEXTOS_AJUDA[],CP_SELECAO_ITEM,MATCH("Link_Amigavel",TBL_TEXTOS_AJUDA[#Headers],0)),"")),"") -> Veja o comparativo de Seguro da Quadro Rodas

Sheet 2.Resultado
B2: =UPPER(CP_MODELO&" - "&"Investimento em "&N_CP_PRAZO_CONTRATO&" meses") -> POPULAR HATCH 1.0 MANUAL (COMPLETO) - INVESTIMENTO EM 36 MESES
C4: CUSTO FROTA PRÓPRIA | D4: Ano 1 | E4: Ano 2 | F4: Ano 3 | G4: Total
B6: Aquisição | C6: Custo Oportunidade | D6: =IF(N_CP_PRAZO_CONTRATO=12,-SUM('3.Fluxo_Caixa'!N22:BJ22),-SUM('3.Fluxo_Caixa'!N22:Y22)) -> 2408.611655 | E6: =IF(N_CP_PRAZO_CONTRATO=12,0,IF(N_CP_PRAZO_CONTRATO=24,-SUM('3.Fluxo_Caixa'!Z22:BK22),-SUM('3.Fluxo_Caixa'!Z22:AK22))) -> 2408.611655 | F6: =IF(N_CP_PRAZO_CONTRATO=36,-SUM('3.Fluxo_Caixa'!AL22:BL22),0) -> 2408.611655 | G6: =ROUND(SUM(D6:F6),2) -> 7225.83
B7: Depreciação | C7: Saldo Compra e Venda | D7: =IF(N_CP_PRAZO_CONTRATO=12,-SUM('3.Fluxo_Caixa'!N20:BJ20)-SUM('3.Fluxo_Caixa'!N16:BJ16)-SUM('3.Fluxo_Caixa'!N19:BJ19),-SUM('3.Fluxo_Caixa'!N20:Y20)-SUM('3.Fluxo_Caixa'!N16:Y16)-SUM('3.Fluxo_Caixa'!N19:Y19)) -> 7099.84 | E7: =IF(N_CP_PRAZO_CONTRATO=12,0,IF(N_CP_PRAZO_CONTRATO=24,-SUM('3.Fluxo_Caixa'!Z20:BK20)-SUM('3.Fluxo_Caixa'!Z16:BK16)-SUM('3.Fluxo_Caixa'!Z19:BK19),-SUM('3.Fluxo_Caixa'!Z20:AK20)-SUM('3.Fluxo_Caixa'!Z16:AK16)-SUM('3.Fluxo_Caixa'!Z19:AK19))) -> 7099.84 | F7: =IF(N_CP_PRAZO_CONTRATO=36,-SUM('3.Fluxo_Caixa'!AL20:BL20)-SUM('3.Fluxo_Caixa'!AL16:BL16)-SUM('3.Fluxo_Caixa'!AL19:BL19),0) -> -5900.48 | G7: 8299.2
B8: Custo Frota | C8: IPVA + Licenciamento | D8: =IF(N_CP_PRAZO_CONTRATO=12,-SUM('3.Fluxo_Caixa'!N12:BJ12),-SUM('3.Fluxo_Caixa'!N12:Y12)) -> 1597.464 | E8: =IF(N_CP_PRAZO_CONTRATO=12,0,IF(N_CP_PRAZO_CONTRATO=24,-SUM('3.Fluxo_Caixa'!Z12:BK12),-SUM('3.Fluxo_Caixa'!Z12:AK12))) -> 1478.226 | F8: =IF(N_CP_PRAZO_CONTRATO=36,-SUM('3.Fluxo_Caixa'!AL12:BL12),0) -> 1358.988 | G8: 4434.68 | Y8: Frota Própria | Z8: =$G$15 -> 24832
B9: Custo Frota | C9: Seguro Anual | D9: =IF(N_CP_PRAZO_CONTRATO=12,-SUM('3.Fluxo_Caixa'!N11:BJ11),-SUM('3.Fluxo_Caixa'!N11:Y11)) -> 1419.968 | E9: =IF(N_CP_PRAZO_CONTRATO=12,0,IF(N_CP_PRAZO_CONTRATO=24,-SUM('3.Fluxo_Caixa'!Z11:BK11),-SUM('3.Fluxo_Caixa'!Z11:AK11))) -> 1313.978667 | F9: =IF(N_CP_PRAZO_CONTRATO=36,-SUM('3.Fluxo_Caixa'!AL11:BL11),0) -> 1207.989333 | G9: 3941.94 | Y9: Frota Locada | Z9: =$G$22 -> 29224.8
B10: Custo Frota | C10: Frota Reserva | D10: =IF(N_CP_PRAZO_CONTRATO=12,-SUM('3.Fluxo_Caixa'!N15:BJ15),-SUM('3.Fluxo_Caixa'!N15:Y15)) -> 484.08 | E10: =IF(N_CP_PRAZO_CONTRATO=12,0,IF(N_CP_PRAZO_CONTRATO=24,-SUM('3.Fluxo_Caixa'!Z15:BK15),-SUM('3.Fluxo_Caixa'!Z15:AK15))) -> 484.08 | F10: =IF(N_CP_PRAZO_CONTRATO=36,-SUM('3.Fluxo_Caixa'!AL15:BL15),0) -> 484.08 | G10: 1452.24 | Y10: Economia em R$ | Z10: =Z8-Z9 -> -4392.8
B11: Custo Frota | C11: Manutenção | D11: =IF(N_CP_PRAZO_CONTRATO=12,-SUM('3.Fluxo_Caixa'!N13:Y13,'3.Fluxo_Caixa'!$M$17:$AX$17),-SUM('3.Fluxo_Caixa'!N13:Y13)) -> 645.984 | E11: =-IF(N_CP_PRAZO_CONTRATO=12,0,IF(N_CP_PRAZO_CONTRATO=36,SUM('3.Fluxo_Caixa'!Z13:AK13),SUM('3.Fluxo_Caixa'!Z13:AK13,'3.Fluxo_Caixa'!$M$17:$AX$17))) -> 645.984 | F11: =IF(N_CP_PRAZO_CONTRATO<>36,0,-SUM('3.Fluxo_Caixa'!AL13:AW13,'3.Fluxo_Caixa'!$M$17:$AX$17)) -> 1355.984 | G11: 2647.95 | Y11: Economia em % | Z11: =TEXT(Z10/Z8,"0%") -> -18%
B12: Custo Frota | C12: Frete | D12: =IF(N_CP_PRAZO_CONTRATO=12,-SUM('3.Fluxo_Caixa'!$M$10:$BG$10,'3.Fluxo_Caixa'!$M$18:$BF$18),-SUM('3.Fluxo_Caixa'!$M$10:$BG$10)) -> 150 | E12: =IF(OR(N_CP_PRAZO_CONTRATO=12,N_CP_PRAZO_CONTRATO=36),0,-SUM('3.Fluxo_Caixa'!$M$18:$BF$18)) -> 0 | F12: =IF(N_CP_PRAZO_CONTRATO<36,0,IF(N_CP_PRAZO_CONTRATO=36,-SUM('3.Fluxo_Caixa'!$M$18:$BF$18,0))) -> 350 | G12: 500
B13: Custos ADM | C13: Custo administrativo gestão da frota | D13: =IF(N_CP_PRAZO_CONTRATO=12,-SUM('3.Fluxo_Caixa'!N14:BJ14),-SUM('3.Fluxo_Caixa'!N14:Y14)) -> 1800 | E13: =IF(N_CP_PRAZO_CONTRATO=12,0,IF(N_CP_PRAZO_CONTRATO=24,-SUM('3.Fluxo_Caixa'!Z14:BK14),-SUM('3.Fluxo_Caixa'!Z14:AK14))) -> 1800 | F13: =IF(N_CP_PRAZO_CONTRATO=36,-SUM('3.Fluxo_Caixa'!AL14:BL14),0) -> 1800 | G13: 5400 | Y13: Custo Frota | Z13: =SUMIF($B$6:$B$14,Y13,$G$6:$G$14) -> 12976.81 | AA13: =Z13/$Z$17 -> 0.3827759791
B14: - | C14: Imposto de Renda + Contribuição Social | D14: =IF(N_CP_PRAZO_CONTRATO=12,-SUM('3.Fluxo_Caixa'!N21:BJ21),-SUM('3.Fluxo_Caixa'!N21:Y21)) -> -4487.09424 | E14: =IF(N_CP_PRAZO_CONTRATO=12,0,IF(N_CP_PRAZO_CONTRATO=24,-SUM('3.Fluxo_Caixa'!Z21:BK21),-SUM('3.Fluxo_Caixa'!Z21:AK21))) -> -4359.516947 | F14: =IF(N_CP_PRAZO_CONTRATO=36,-SUM('3.Fluxo_Caixa'!AL21:BL21),0) -> -223.2308533 | G14: -9069.84 | Y14: Depreciação | Z14: =SUMIF($B$6:$B$14,Y14,$G$6:$G$14) -> 8299.2 | AA14: =Z14/$Z$17 -> 0.2448008722
C15: Custo Total Operação | D15: =SUM(D6:D14) -> 11118.85342 | E15: =SUM(E6:E14) -> 10871.20338 | F15: =SUM(F6:F14) -> 2841.942135 | G15: =ROUND(SUM(D15:F15),2) -> 24832 | Y15: Aquisição | Z15: =SUMIF($B$6:$B$14,Y15,$G$6:$G$14) -> 7225.83 | AA15: =Z15/$Z$17 -> 0.2131397588
Y16: Custos ADM | Z16: =SUMIF($B$6:$B$14,Y16,$G$6:$G$14) -> 5400 | AA16: =Z16/$Z$17 -> 0.1592833899
Z17: =SUM(Z13:Z16) -> 33901.84
C18: CUSTO FROTA LOCADA | D18: Ano 1 | E18: Ano 2 | F18: Ano 3 | G18: Total
C20: Valor aluguel | D20: =-SUM('3.Fluxo_Caixa'!N31:Y31) -> 14760 | E20: =-SUM('3.Fluxo_Caixa'!Z31:AK31) -> 14760 | F20: =-SUM('3.Fluxo_Caixa'!AL31:AW31) -> 14760 | G20: =ROUND(SUM(D20:F20),2) -> 44280
C21: Imposto de Renda + Contribuição Social | D21: =-SUM('3.Fluxo_Caixa'!N32:Y32) -> -5018.4 | E21: =-SUM('3.Fluxo_Caixa'!Z32:AK32) -> -5018.4 | F21: =-SUM('3.Fluxo_Caixa'!AL32:AW32) -> -5018.4 | G21: -15055.2
C22: Valor total aluguel líquido | D22: =SUM(D20:D21) -> 9741.6 | E22: =SUM(E20:E21) -> 9741.6 | F22: =SUM(F20:F21) -> 9741.6 | G22: =ROUND(SUM(D22:F22),2) -> 29224.8
B27: A simulação foi feita com base numa operação padrão e valores médios de mercado, possuindo, portanto, caráter meramente ilustrativo. Assim, os valores apresentados na simulação não se constituem em proposta, tão pouco vinculam a Easy fleet para quaisquer fins. Para obter maiores detalhes sobre terceirização e gestão de frota, bem como obter proposta de preços, agende uma visita com um de nossos consultores que poderá esclarecer todas as dúvidas e enviar uma proposta de acordo com as condições específicas de uso dos veículos para sua empresa.
C30: VANTAGENS DA TERCEIRIZAÇÃO
C40: DIFERENCIAIS EASY FLEET | J40: TERCEIRIZAR JÁ É UMA TENDÊNCIA NO MERCADO....

Sheet 3.Fluxo_Caixa (hidden)
M4: Ano 0 | N4: Ano 1 | O4: Ano 1 | P4: Ano 1 | Q4: Ano 1 | R4: Ano 1 | S4: Ano 1 | T4: Ano 1 | U4: Ano 1 | V4: Ano 1 | W4: Ano 1 | X4: Ano 1 | Y4: Ano 1 | Z4: Ano 2 | AA4: Ano 2 | AB4: Ano 2 | AC4: Ano 2 | AD4: Ano 2 | AE4: Ano 2 | AF4: Ano 2 | AG4: Ano 2 | AH4: Ano 2 | AI4: Ano 2 | AJ4: Ano 2 | AK4: Ano 2 | AL4: Ano 3 | AM4: Ano 3 | AN4: Ano 3 | AO4: Ano 3 | AP4: Ano 3 | AQ4: Ano 3 | AR4: Ano 3 | AS4: Ano 3 | AT4: Ano 3 | AU4: Ano 3 | AV4: Ano 3 | AW4: Ano 3 | AX4: Ano 4
C5: =CP_MODELO -> Popular Hatch 1.0 Manual (Completo) | F5: FLUXO DE CAIXA ANUAL | M5: FLUXO DE CAIXA MENSAL
D6: Premissa | E6: Frequência | F6: Ano 0 | G6: Ano 1 | H6: Ano 2 | I6: Ano 3 | J6: Ano 4 | K6: Total | M6: Mês 0 | N6: =IF(M7<=N_CP_PRAZO_CONTRATO,M7+1,0) -> 1 | O6: =IF(N6<=N_CP_PRAZO_CONTRATO,IF(N6=0,0,N6+1),0) -> 2 | P6: 3 | Q6: 4 | R6: 5 | S6: 6 | T6: 7 | U6: 8 | V6: 9 | W6: 10 | X6: 11 | Y6: 12 | Z6: 13 | AA6: 14 | AB6: 15 | AC6: 16 | AD6: 17 | AE6: 18 | AF6: 19 | AG6: 20 | AH6: 21 | AI6: 22 | AJ6: 23 | AK6: 24 | AL6: 25 | AM6: 26 | AN6: 27 | AO6: 28 | AP6: 29 | AQ6: 30 | AR6: 31 | AS6: 32 | AT6: 33 | AU6: 34 | AV6: 35 | AW6: 36 | AX6: 37
C7: CUSTO FROTA PRÓPRIA | M7: 0
C9: 1.3 Valor da compra com desconto | D9: =N_CP_VALOR_COMPRA_VEICULO_COM_DESCONTO -> 35499.2 | E9: Único | F9: =SUMIF($M$4:$AX$4,F$6,$M9:$AX9) -> -35499.2 | G9: =SUMIF($M$4:$AX$4,G$6,$M9:$AX9) -> 0 | H9: 0 | I9: 0 | J9: 0 | K9: =SUM(F9:J9) -> -35499.2 | M9: =N_CP_VALOR_COMPRA_VEICULO_COM_DESCONTO*-1 -> -35499.2
C10: 1.4 Frete entrega do veículo | D10: =N_CP_FRETE_ENTREGA -> 150 | E10: Único | F10: =SUMIF($M$4:$AX$4,F$6,$M10:$AX10) -> 0 | G10: -150 | H10: 0 | I10: 0 | J10: 0 | K10: =SUM(F10:J10) -> -150 | N10: =IF(N6=1,-N_CP_FRETE_ENTREGA,0) -> -150 | O10: 0 | P10: 0 | Q10: 0 | R10: 0 | S10: 0 | T10: 0 | U10: 0 | V10: 0 | W10: 0 | X10: 0 | Y10: 0 | Z10: 0 | AA10: 0 | AB10: 0 | AC10: 0 | AD10: 0 | AE10: 0 | AF10: 0 | AG10: 0 | AH10: 0 | AI10: 0 | AJ10: 0 | AK10: 0 | AL10: 0 | AM10: 0 | AN10: 0 | AO10: 0 | AP10: 0 | AQ10: 0 | AR10: 0 | AS10: 0 | AT10: 0 | AU10: 0 | AV10: 0 | AW10: 0 | AX10: 0 | AY10: 0 | AZ10: 0 | BA10: 0 | BB10: 0 | BC10: 0 | BD10: 0 | BE10: 0 | BF10: 0 | BG10: 0
C11: 2.1 Contratação de Seguro | D11: =N_CP_SEGURO_ANUAL -> 0.04 | E11: Anual | F11: 0 | G11: -1419.968 | H11: -1313.978667 | I11: -1207.989333 | J11: 0 | K11: -3941.936 | N11: =-N_CP_VALOR_COMPRA_VEICULO_COM_DESCONTO*N_CP_SEGURO_ANUAL -> -1419.968 | O11: 0 | P11: 0 | Q11: 0 | R11: 0 | S11: 0 | T11: 0 | U11: 0 | V11: 0 | W11: 0 | X11: 0 | Y11: 0 | Z11: =-IF(AA6=0,0,Z26*N_CP_SEGURO_ANUAL) -> -1313.978667 | AA11: 0 | AB11: 0 | AC11: 0 | AD11: 0 | AE11: 0 | AF11: 0 | AG11: 0 | AH11: 0 | AI11: 0 | AJ11: 0 | AK11: 0 | AL11: =-IF(AM6=0,0,AL26*N_CP_SEGURO_ANUAL) -> -1207.989333 | AM11: 0 | AN11: 0 | AO11: 0 | AP11: 0 | AQ11: 0 | AR11: 0 | AS11: 0 | AT11: 0 | AU11: 0 | AV11: 0 | AW11: 0 | AX11: =-IF(AY4=0,0,N_CP_VALOR_COMPRA_VEICULO_COM_DESCONTO-((N_CP_VALOR_COMPRA_VEICULO_COM_DESCONTO-N_CP_VALOR_ESTIMADO_VENDA_VEICULO)/N_CP_PRAZO_CONTRATO)*AW6)*N_CP_SEGURO_ANUAL -> 0 | AY11: 0 | AZ11: 0 | BA11: 0 | BB11: 0 | BC11: 0 | BD11: 0 | BE11: 0 | BF11: 0 | BG11: 0
C12: 2.2 IPVA + Licenciamento | D12: =N_CP_LICENCIAMENTO -> 0.045 | E12: Anual | F12: 0 | G12: -1597.464 | H12: -1478.226 | I12: -1358.988 | J12: 0 | K12: -4434.678 | N12: =-N_CP_VALOR_COMPRA_VEICULO_COM_DESCONTO*N_CP_LICENCIAMENTO -> -1597.464 | O12: 0 | P12: 0 | Q12: 0 | R12: 0 | S12: 0 | T12: 0 | U12: 0 | V12: 0 | W12: 0 | X12: 0 | Y12: 0 | Z12: =-IF(Z6=0,0,Z26*N_CP_LICENCIAMENTO) -> -1478.226 | AA12: 0 | AB12: 0 | AC12: 0 | AD12: 0 | AE12: 0 | AF12: 0 | AG12: 0 | AH12: 0 | AI12: 0 | AJ12: 0 | AK12: 0 | AL12: =-IF(AL6=0,0,AL26*N_CP_LICENCIAMENTO) -> -1358.988 | AM12: 0 | AN12: 0 | AO12: 0 | AP12: 0 | AQ12: 0 | AR12: 0 | AS12: 0 | AT12: 0 | AU12: 0 | AV12: 0 | AW12: 0 | AY12: 0 | AZ12: 0 | BA12: 0 | BB12: 0 | BC12: 0 | BD12: 0 | BE12: 0 | BF12: 0 | BG12: 0
C13: 2.3 Manutenção Preventiva e Corretiva | D13: =N_CP_MANUTENCAO_PREVENTIVA_CORRETIVA -> 645.984 | E13: Anual | F13: 0 | G13: -645.984 | H13: -645.984 | I13: -645.984 | J13: 0 | K13: -1937.952 | N13: =IF(O6=0,0,-N_CP_MANUTENCAO_PREVENTIVA_CORRETIVA)/12 -> -53.832 | O13: -53.832 | P13: -53.832 | Q13: -53.832 | R13: -53.832 | S13: -53.832 | T13: -53.832 | U13: -53.832 | V13: -53.832 | W13: -53.832 | X13: -53.832 | Y13: -53.832 | Z13: -53.832 | AA13: -53.832 | AB13: -53.832 | AC13: -53.832 | AD13: -53.832 | AE13: -53.832 | AF13: -53.832 | AG13: -53.832 | AH13: -53.832 | AI13: -53.832 | AJ13: -53.832 | AK13: -53.832 | AL13: -53.832 | AM13: -53.832 | AN13: -53.832 | AO13: -53.832 | AP13: -53.832 | AQ13: -53.832 | AR13: -53.832 | AS13: -53.832 | AT13: -53.832 | AU13: -53.832 | AV13: -53.832 | AW13: -53.832 | AX13: =IF(AY6=0,0,-N_CP_MANUTENCAO_PREVENTIVA_CORRETIVA) -> 0 | AY13: 0 | AZ13: 0 | BA13: 0 | BB13: 0 | BC13: 0 | BD13: 0 | BE13: =IF(AND(BF4>0,BG4=0),-N_CP_VALOR_COMPRA_VEICULO_COM_DESCONTO*N_CP_MANUTENCAO_PARA_VENDA-N_CP_MANUTENCAO_PREVENTIVA_CORRETIVA,IF(BF4=0,0,-N_CP_MANUTENCAO_PREVENTIVA_CORRETIVA)) -> 0 | BF13: =IF(AND(BG4>0,BH4=0),-N_CP_VALOR_COMPRA_VEICULO_COM_DESCONTO*N_CP_MANUTENCAO_PARA_VENDA-N_CP_MANUTENCAO_PREVENTIVA_CORRETIVA,IF(BG4=0,0,-N_CP_MANUTENCAO_PREVENTIVA_CORRETIVA)) -> 0 | BG13: =IF(AND(BH4>0,BI4=0),-N_CP_VALOR_COMPRA_VEICULO_COM_DESCONTO*N_CP_MANUTENCAO_PARA_VENDA-N_CP_MANUTENCAO_PREVENTIVA_CORRETIVA,IF(BH4=0,0,-N_CP_MANUTENCAO_PREVENTIVA_CORRETIVA)) -> 0
C14: 2.4 Custo administrativo com a gestão da frota | D14: =N_CP_CUSTOS_ADM -> 1800 | E14: Anual | F14: 0 | G14: -1800 | H14: -1800 | I14: -1800 | J14: 0 | K14: -5400 | N14: =IF(O6=0,0,-N_CP_CUSTOS_ADM)/12 -> -150 | O14: -150 | P14: -150 | Q14: -150 | R14: -150 | S14: -150 | T14: -150 | U14: -150 | V14: -150 | W14: -150 | X14: -150 | Y14: -150 | Z14: -150 | AA14: -150 | AB14: -150 | AC14: -150 | AD14: -150 | AE14: -150 | AF14: -150 | AG14: -150 | AH14: -150 | AI14: -150 | AJ14: -150 | AK14: -150 | AL14: -150 | AM14: -150 | AN14: -150 | AO14: -150 | AP14: -150 | AQ14: -150 | AR14: -150 | AS14: -150 | AT14: -150 | AU14: -150 | AV14: -150 | AW14: -150 | AX14: =IF(AY4=0,0,-N_CP_CUSTOS_ADM) -> 0 | AY14: 0 | AZ14: 0 | BA14: 0 | BB14: 0 | BC14: 0 | BD14: 0 | BE14: 0 | BF14: 0 | BG14: 0
C15: 2.5 Frota reserva (Locações eventuais) | D15: =N_CP_FROTA_RESERVA -> 484.08 | E15: Anual | F15: 0 | G15: -484.08 | H15: -484.08 | I15: -484.08 | J15: 0 | K15: -1452.24 | N15: =IF(O6=0,0,-N_CP_FROTA_RESERVA/12) -> -40.34 | O15: -40.34 | P15: -40.34 | Q15: -40.34 | R15: -40.34 | S15: -40.34 | T15: -40.34 | U15: -40.34 | V15: -40.34 | W15: -40.34 | X15: -40.34 | Y15: -40.34 | Z15: -40.34 | AA15: -40.34 | AB15: -40.34 | AC15: -40.34 | AD15: -40.34 | AE15: -40.34 | AF15: -40.34 | AG15: -40.34 | AH15: -40.34 | AI15: -40.34 | AJ15: -40.34 | AK15: -40.34 | AL15: -40.34 | AM15: -40.34 | AN15: -40.34 | AO15: -40.34 | AP15: -40.34 | AQ15: -40.34 | AR15: -40.34 | AS15: -40.34 | AT15: -40.34 | AU15: -40.34 | AV15: -40.34 | AW15: -40.34 | AX15: =IF(AY4=0,0,-N_CP_VALOR_COMPRA_VEICULO_COM_DESCONTO*N_CP_FROTA_RESERVA) -> 0 | AY15: 0 | AZ15: 0 | BA15: 0 | BB15: 0 | BC15: 0 | BD15: 0 | BE15: 0 | BF15: 0 | BG15: 0
C16: 3.2 Custos do processo de venda | D16: =N_CP_CUSTO_PROCESSO_VENDA_VEICULO -> 350 | E16: Último mês | F16: 0 | G16: 0 | H16: 0 | I16: 0 | J16: -350 | K16: -350 | N16: =-IF(N6=N_CP_PRAZO_CONTRATO+1,N_CP_CUSTO_PROCESSO_VENDA_VEICULO*N26,0) -> 0 | O16: 0 | P16: 0 | Q16: 0 | R16: 0 | S16: 0 | T16: 0 | U16: 0 | V16: 0 | W16: 0 | X16: 0 | Y16: 0 | Z16: =-IF(Z6=N_CP_PRAZO_CONTRATO+1,N_CP_CUSTO_PROCESSO_VENDA_VEICULO,0) -> 0 | AA16: 0 | AB16: 0 | AC16: 0 | AD16: 0 | AE16: 0 | AF16: 0 | AG16: 0 | AH16: 0 | AI16: 0 | AJ16: 0 | AK16: 0 | AL16: =-IF(AL6=N_CP_PRAZO_CONTRATO+1,N_CP_CUSTO_PROCESSO_VENDA_VEICULO,0) -> 0 | AM16: 0 | AN16: 0 | AO16: 0 | AP16: 0 | AQ16: 0 | AR16: 0 | AS16: 0 | AT16: 0 | AU16: 0 | AV16: 0 | AW16: 0 | AX16: =-IF(AX6=N_CP_PRAZO_CONTRATO+1,N_CP_CUSTO_PROCESSO_VENDA_VEICULO,0) -> -350 | AY16: 0 | AZ16: 0 | BA16: 0 | BB16: 0 | BC16: 0 | BD16: 0 | BE16: 0 | BF16: 0 | BG16: 0
C17: 3.3 Manutenção para venda | D17: =N_CP_MANUTENCAO_PARA_VENDA -> 710 | E17: Último mês | F17: 0 | G17: 0 | H17: 0 | I17: -710 | J17: 0 | K17: -710 | N17: =IF(AND(O6>0,P6=0),-N_CP_MANUTENCAO_PARA_VENDA,0) -> 0 | O17: 0 | P17: 0 | Q17: 0 | R17: 0 | S17: 0 | T17: 0 | U17: 0 | V17: 0 | W17: 0 | X17: 0 | Y17: 0 | Z17: 0 | AA17: 0 | AB17: 0 | AC17: 0 | AD17: 0 | AE17: 0 | AF17: 0 | AG17: 0 | AH17: 0 | AI17: 0 | AJ17: 0 | AK17: 0 | AL17: 0 | AM17: 0 | AN17: 0 | AO17: 0 | AP17: 0 | AQ17: 0 | AR17: 0 | AS17: 0 | AT17: 0 | AU17: 0 | AV17: 0 | AW17: -710 | AX17: 0 | AY17: 0 | AZ17: 0 | BA17: 0 | BB17: =IF(AND(BC6>0,BD6=0),-N_CP_VALOR_COMPRA_VEICULO_COM_DESCONTO*N_CP_MANUTENCAO_PARA_VENDA,0) -> 0 | BC17: 0 | BD17: 0 | BE17: 0
C18: 3.4 Frete desmobilização do veículo | D18: =N_CP_FRETE_DESMOBILIZACAO -> 350 | E18: Último mês | F18: 0 | G18: 0 | H18: 0 | I18: -350 | J18: 0 | K18: -350 | N18: =IF(N6=N_CP_PRAZO_CONTRATO,-N_CP_FRETE_DESMOBILIZACAO,0) -> 0 | O18: 0 | P18: 0 | Q18: 0 | R18: 0 | S18: 0 | T18: 0 | U18: 0 | V18: 0 | W18: 0 | X18: 0 | Y18: 0 | Z18: 0 | AA18: 0 | AB18: 0 | AC18: 0 | AD18: 0 | AE18: 0 | AF18: 0 | AG18: 0 | AH18: 0 | AI18: 0 | AJ18: 0 | AK18: 0 | AL18: 0 | AM18: 0 | AN18: 0 | AO18: 0 | AP18: 0 | AQ18: 0 | AR18: 0 | AS18: 0 | AT18: 0 | AU18: 0 | AV18: 0 | AW18: -350 | AX18: 0 | AY18: 0 | AZ18: 0 | BA18: 0 | BB18: 0 | BC18: 0 | BD18: 0 | BE18: 0 | BF18: 0
C19: Valor Recuperado na Venda | F19: 0 | G19: 0 | H19: =IF(N_CP_PRAZO_CONTRATO=12,H26-G25,0) -> 0 | I19: =IF(N_CP_PRAZO_CONTRATO=24,I26-H25,0) -> 0 | J19: =IF(N_CP_PRAZO_CONTRATO=36,J26-I25,0) -> 13350.32 | K19: =SUM(F19:J19) -> 13350.32 | N19: =IF(N6=N_CP_PRAZO_CONTRATO+1,N_CP_VALOR_ESTIMADO_VENDA_VEICULO-(N_CP_VALOR_COMPRA_VEICULO_COM_DESCONTO+SUM(#REF!)),0) -> 0 | O19: =IF(O6=N_CP_PRAZO_CONTRATO+1,N_CP_VALOR_ESTIMADO_VENDA_VEICULO-(N_CP_VALOR_COMPRA_VEICULO_COM_DESCONTO+SUM($M$20:N20)),0) -> 0 | P19: =IF(P6=N_CP_PRAZO_CONTRATO+1,N_CP_VALOR_ESTIMADO_VENDA_VEICULO-(N_CP_VALOR_COMPRA_VEICULO_COM_DESCONTO+SUM($M$20:O20)),0) -> 0 | Q19: =IF(Q6=N_CP_PRAZO_CONTRATO+1,N_CP_VALOR_ESTIMADO_VENDA_VEICULO-(N_CP_VALOR_COMPRA_VEICULO_COM_DESCONTO+SUM($M$20:P20)),0) -> 0 | R19: =IF(R6=N_CP_PRAZO_CONTRATO+1,N_CP_VALOR_ESTIMADO_VENDA_VEICULO-(N_CP_VALOR_COMPRA_VEICULO_COM_DESCONTO+SUM($M$20:Q20)),0) -> 0 | S19: =IF(S6=N_CP_PRAZO_CONTRATO+1,N_CP_VALOR_ESTIMADO_VENDA_VEICULO-(N_CP_VALOR_COMPRA_VEICULO_COM_DESCONTO+SUM($M$20:R20)),0) -> 0 | T19: =IF(T6=N_CP_PRAZO_CONTRATO+1,N_CP_VALOR_ESTIMADO_VENDA_VEICULO-(N_CP_VALOR_COMPRA_VEICULO_COM_DESCONTO+SUM($M$20:S20)),0) -> 0 | U19: =IF(U6=N_CP_PRAZO_CONTRATO+1,N_CP_VALOR_ESTIMADO_VENDA_VEICULO-(N_CP_VALOR_COMPRA_VEICULO_COM_DESCONTO+SUM($M$20:T20)),0) -> 0 | V19: =IF(V6=N_CP_PRAZO_CONTRATO+1,N_CP_VALOR_ESTIMADO_VENDA_VEICULO-(N_CP_VALOR_COMPRA_VEICULO_COM_DESCONTO+SUM($M$20:U20)),0) -> 0 | W19: =IF(W6=N_CP_PRAZO_CONTRATO+1,N_CP_VALOR_ESTIMADO_VENDA_VEICULO-(N_CP_VALOR_COMPRA_VEICULO_COM_DESCONTO+SUM($M$20:V20)),0) -> 0 | X19: =IF(X6=N_CP_PRAZO_CONTRATO+1,N_CP_VALOR_ESTIMADO_VENDA_VEICULO-(N_CP_VALOR_COMPRA_VEICULO_COM_DESCONTO+SUM($M$20:W20)),0) -> 0 | Y19: =IF(Y6=N_CP_PRAZO_CONTRATO+1,N_CP_VALOR_ESTIMADO_VENDA_VEICULO-(N_CP_VALOR_COMPRA_VEICULO_COM_DESCONTO+SUM($M$20:X20)),0) -> 0 | Z19: =IF(Z6=N_CP_PRAZO_CONTRATO+1,Z26-Y25,0) -> 0 | AL19: =IF(AL6=N_CP_PRAZO_CONTRATO+1,AL26-AK25,0) -> 0 | AX19: =IF(AX6=N_CP_PRAZO_CONTRATO+1,AX26-AW25,0) -> 13350.32 | AY19: =IF(AY4=N_CP_PRAZO_CONTRATO+1,N_CP_VALOR_ESTIMADO_VENDA_VEICULO-(N_CP_VALOR_COMPRA_VEICULO_COM_DESCONTO+SUM($M$20:AX20)),0) -> 0 | AZ19: =IF(AZ4=N_CP_PRAZO_CONTRATO+1,N_CP_VALOR_ESTIMADO_VENDA_VEICULO-(N_CP_VALOR_COMPRA_VEICULO_COM_DESCONTO+SUM($M$20:AY20)),0) -> 0 | BA19: =IF(BA4=N_CP_PRAZO_CONTRATO+1,N_CP_VALOR_ESTIMADO_VENDA_VEICULO-(N_CP_VALOR_COMPRA_VEICULO_COM_DESCONTO+SUM($M$20:AZ20)),0) -> 0 | BB19: =IF(BB4=N_CP_PRAZO_CONTRATO+1,N_CP_VALOR_ESTIMADO_VENDA_VEICULO-(N_CP_VALOR_COMPRA_VEICULO_COM_DESCONTO+SUM($M$20:BA20)),0) -> 0 | BC19: =IF(BC4=N_CP_PRAZO_CONTRATO+1,N_CP_VALOR_ESTIMADO_VENDA_VEICULO-(N_CP_VALOR_COMPRA_VEICULO_COM_DESCONTO+SUM($M$20:BB20)),0) -> 0 | BD19: =IF(BD4=N_CP_PRAZO_CONTRATO+1,N_CP_VALOR_ESTIMADO_VENDA_VEICULO-(N_CP_VALOR_COMPRA_VEICULO_COM_DESCONTO+SUM($M$20:BC20)),0) -> 0 | BE19: =IF(BE4=N_CP_PRAZO_CONTRATO+1,N_CP_VALOR_ESTIMADO_VENDA_VEICULO-(N_CP_VALOR_COMPRA_VEICULO_COM_DESCONTO+SUM($M$20:BD20)),0) -> 0 | BF19: =IF(BF4=N_CP_PRAZO_CONTRATO+1,N_CP_VALOR_ESTIMADO_VENDA_VEICULO-(N_CP_VALOR_COMPRA_VEICULO_COM_DESCONTO+SUM($M$20:BE20)),0) -> 0 | BG19: =IF(BG4=N_CP_PRAZO_CONTRATO+1,N_CP_VALOR_ESTIMADO_VENDA_VEICULO-(N_CP_VALOR_COMPRA_VEICULO_COM_DESCONTO+SUM($M$20:BF20)),0) -> 0
C20: Depreciação Contábil | D20: 0.2 | E20: Anual | F20: 0 | G20: -7099.84 | H20: -7099.84 | I20: -7099.84 | J20: 0 | K20: -21299.52 | N20: =IF(O6=0,0,-(N_CP_VALOR_COMPRA_VEICULO_COM_DESCONTO*N_CP_DEPRECIACAO_CONTABIL/12)) -> -591.6533333 | O20: -591.6533333 | P20: -591.6533333 | Q20: -591.6533333 | R20: -591.6533333 | S20: -591.6533333 | T20: -591.6533333 | U20: -591.6533333 | V20: -591.6533333 | W20: -591.6533333 | X20: -591.6533333 | Y20: -591.6533333 | Z20: -591.6533333 | AA20: -591.6533333 | AB20: -591.6533333 | AC20: -591.6533333 | AD20: -591.6533333 | AE20: -591.6533333 | AF20: -591.6533333 | AG20: -591.6533333 | AH20: -591.6533333 | AI20: -591.6533333 | AJ20: -591.6533333 | AK20: -591.6533333 | AL20: -591.6533333 | AM20: -591.6533333 | AN20: -591.6533333 | AO20: -591.6533333 | AP20: -591.6533333 | AQ20: -591.6533333 | AR20: -591.6533333 | AS20: -591.6533333 | AT20: -591.6533333 | AU20: -591.6533333 | AV20: -591.6533333 | AW20: -591.6533333 | AX20: =IF(AY4=0,0,-(N_CP_VALOR_COMPRA_VEICULO_COM_DESCONTO*N_CP_DEPRECIACAO_CONTABIL/12)) -> 0 | AY20: 0 | AZ20: 0 | BA20: 0 | BB20: 0 | BC20: 0 | BD20: 0 | BE20: 0 | BF20: 0 | BG20: 0
C21: 4.1 Imposto de Renda + Contribuição Social | D21: =N_CP_ALIQUOTA_IR -> 0.34 | E21: Anual | F21: 0 | G21: =SUM(G8:G20)*N_CP_ALIQUOTA_IR*-1 -> 4487.09424 | H21: 4359.516947 | I21: 4643.339653 | J21: -4420.1088 | K21: 9069.84204 | N21: =SUM(N8:N20)*N_CP_ALIQUOTA_IR*-1 -> 1361.107493 | O21: 284.1806133 | P21: 284.1806133 | Q21: 284.1806133 | R21: 284.1806133 | S21: 284.1806133 | T21: 284.1806133 | U21: 284.1806133 | V21: 284.1806133 | W21: 284.1806133 | X21: 284.1806133 | Y21: 284.1806133 | Z21: 1233.5302 | AA21: 284.1806133 | AB21: 284.1806133 | AC21: 284.1806133 | AD21: 284.1806133 | AE21: 284.1806133 | AF21: 284.1806133 | AG21: 284.1806133 | AH21: =SUM(AH8:AH20)*N_CP_ALIQUOTA_IR*-1 -> 284.1806133 | AI21: 284.1806133 | AJ21: 284.1806133 | AK21: 284.1806133 | AL21: 1156.952907 | AM21: 284.1806133 | AN21: 284.1806133 | AO21: 284.1806133 | AP21: 284.1806133 | AQ21: 284.1806133 | AR21: 284.1806133 | AS21: 284.1806133 | AT21: 284.1806133 | AU21: 284.1806133 | AV21: 284.1806133 | AW21: 644.5806133 | AX21: =SUM(AX8:AX20)*N_CP_ALIQUOTA_IR*-1 -> -4420.1088 | AY21: 0 | AZ21: 0 | BA21: 0 | BB21: 0 | BC21: 0 | BD21: 0 | BE21: 0 | BF21: 0 | BG21: 0
C22: 4.2 Custo Oportunidade | D22: =N_CP_CUSTO_OPORTUNIDADE -> 0.07 | E22: Anual | F22: 0 | G22: -2408.611655 | H22: -2408.611655 | I22: -2408.611655 | J22: 0 | K22: -7225.834966 | N22: =IF(O6=0,0,-N_CP_VALOR_COMPRA_VEICULO_COM_DESCONTO*((1+N_CP_CUSTO_OPORTUNIDADE)^(1/12)-1)) -> -200.7176379 | O22: -200.7176379 | P22: -200.7176379 | Q22: -200.7176379 | R22: -200.7176379 | S22: -200.7176379 | T22: -200.7176379 | U22: -200.7176379 | V22: -200.7176379 | W22: -200.7176379 | X22: -200.7176379 | Y22: -200.7176379 | Z22: -200.7176379 | AA22: -200.7176379 | AB22: -200.7176379 | AC22: -200.7176379 | AD22: -200.7176379 | AE22: -200.7176379 | AF22: -200.7176379 | AG22: -200.7176379 | AH22: -200.7176379 | AI22: -200.7176379 | AJ22: -200.7176379 | AK22: -200.7176379 | AL22: -200.7176379 | AM22: -200.7176379 | AN22: -200.7176379 | AO22: -200.7176379 | AP22: -200.7176379 | AQ22: -200.7176379 | AR22: -200.7176379 | AS22: -200.7176379 | AT22: -200.7176379 | AU22: -200.7176379 | AV22: -200.7176379 | AW22: -200.7176379 | AX22: 0 | AY22: 0 | AZ22: 0 | BA22: 0 | BB22: 0 | BC22: 0 | BD22: 0 | BE22: 0 | BF22: 0 | BG22: 0
C23: Total Mês | F23: 0 | G23: -11118.85342 | H23: -10871.20338 | I23: -11422.15334 | J23: 8580.2112 | K23: -24831.99893 | N23: =SUM(N10:N22) -> -2842.867478 | O23: =SUM(O10:O22) -> -752.3623579 | P23: -752.3623579 | Q23: -752.3623579 | R23: -752.3623579 | S23: -752.3623579 | T23: -752.3623579 | U23: -752.3623579 | V23: -752.3623579 | W23: -752.3623579 | X23: -752.3623579 | Y23: -752.3623579 | Z23: -2595.217438 | AA23: -752.3623579 | AB23: -752.3623579 | AC23: -752.3623579 | AD23: -752.3623579 | AE23: -752.3623579 | AF23: -752.3623579 | AG23: -752.3623579 | AH23: -752.3623579 | AI23: -752.3623579 | AJ23: -752.3623579 | AK23: -752.3623579 | AL23: -2446.567398 | AM23: -752.3623579 | AN23: -752.3623579 | AO23: -752.3623579 | AP23: -752.3623579 | AQ23: -752.3623579 | AR23: -752.3623579 | AS23: -752.3623579 | AT23: -752.3623579 | AU23: -752.3623579 | AV23: -752.3623579 | AW23: -1451.962358 | AX23: 8580.2112
F24: 0 | G24: 0 | H24: 0 | I24: 0 | J24: 0 | K24: 0
C25: Valor do veiculo com Depreciação Contábil | G25: =IF(N_CP_PRAZO_CONTRATO=12,Y25,0) -> 0 | H25: =IF(N_CP_PRAZO_CONTRATO=24,AK25,0) -> 0 | I25: =IF(N_CP_PRAZO_CONTRATO=36,AW25,0) -> 14199.68 | K25: 14199.68 | M25: =IF(N6=0,0,M9*-1) -> 35499.2 | N25: =IF(O6=0,0,M25+N20) -> 34907.54667 | O25: 34315.89333 | P25: 33724.24 | Q25: 33132.58667 | R25: 32540.93333 | S25: 31949.28 | T25: 31357.62667 | U25: 30765.97333 | V25: 30174.32 | W25: 29582.66667 | X25: 28991.01333 | Y25: 28399.36 | Z25: 27807.70667 | AA25: 27216.05333 | AB25: 26624.4 | AC25: 26032.74667 | AD25: 25441.09333 | AE25: 24849.44 | AF25: 24257.78667 | AG25: 23666.13333 | AH25: 23074.48 | AI25: 22482.82667 | AJ25: 21891.17333 | AK25: 21299.52 | AL25: 20707.86667 | AM25: 20116.21333 | AN25: 19524.56 | AO25: 18932.90667 | AP25: 18341.25333 | AQ25: 17749.6 | AR25: 17157.94667 | AS25: 16566.29333 | AT25: 15974.64 | AU25: 15382.98667 | AV25: 14791.33333 | AW25: 14199.68 | AX25: 0 | AY25: 0 | AZ25: 0 | BA25: 0 | BB25: 0 | BC25: 0 | BD25: 0 | BE25: 0 | BF25: 0 | BG25: 0 | BH25: 0
C26: 3.1 Valor Estimado para a venda do veículo | H26: =IF(N_CP_PRAZO_CONTRATO=12,Z26) -> FALSE | I26: =IF(N_CP_PRAZO_CONTRATO=24,AL26) -> FALSE | J26: =IF(N_CP_PRAZO_CONTRATO=36,AX26) -> 27550 | K26: 27550 | Z26: =N_CP_VALOR_COMPRA_VEICULO_COM_DESCONTO-((N_CP_VALOR_COMPRA_VEICULO_COM_DESCONTO-N_CP_VALOR_ESTIMADO_VENDA_VEICULO)/N_CP_PRAZO_CONTRATO)*Y6 -> 32849.46667 | AL26: =N_CP_VALOR_COMPRA_VEICULO_COM_DESCONTO-((N_CP_VALOR_COMPRA_VEICULO_COM_DESCONTO-N_CP_VALOR_ESTIMADO_VENDA_VEICULO)/N_CP_PRAZO_CONTRATO)*AK6 -> 30199.73333 | AX26: =N_CP_VALOR_COMPRA_VEICULO_COM_DESCONTO-((N_CP_VALOR_COMPRA_VEICULO_COM_DESCONTO-N_CP_VALOR_ESTIMADO_VENDA_VEICULO)/N_CP_PRAZO_CONTRATO)*AW6 -> 27550
F27: =SUMIF($M$4:$AX$4,F$6,$M27:$AX27) -> 0 | G27: 0 | H27: 0 | I27: 0 | J27: 0 | K27: 0
C29: CUSTO FROTA TERCEIRIZADA | M29: Mês 0 | N29: 1 | O29: =IF(N29<=N_CP_PRAZO_CONTRATO,IF(N29=0,0,N29+1),0) -> 2 | P29: 3 | Q29: 4 | R29: 5 | S29: 6 | T29: 7 | U29: 8 | V29: 9 | W29: 10 | X29: 11 | Y29: 12 | Z29: 13 | AA29: 14 | AB29: 15 | AC29: 16 | AD29: 17 | AE29: 18 | AF29: 19 | AG29: 20 | AH29: 21 | AI29: 22 | AJ29: 23 | AK29: 24 | AL29: 25 | AM29: 26 | AN29: 27 | AO29: 28 | AP29: 29 | AQ29: 30 | AR29: 31 | AS29: 32 | AT29: 33 | AU29: 34 | AV29: 35 | AW29: 36 | AX29: 37
AY30: =IF(AX29<=N_CP_PRAZO_CONTRATO,IF(AX29=0,0,AX29+1),0) -> 0 | AZ30: =IF(AY30<=N_CP_PRAZO_CONTRATO,IF(AY30=0,0,AY30+1),0) -> 0 | BA30: 0 | BB30: 0 | BC30: 0 | BD30: 0 | BE30: 0 | BF30: 0 | BG30: 0
C31: Aluguel Mensal | D31: =N_CP_VALOR_ALUGUEL_MENSAL -> 1230 | E31: Mensal | F31: =SUMIF($M$4:$AX$4,F$6,$M31:$AX31) -> 0 | G31: -14760 | H31: -14760 | I31: -14760 | J31: 0 | K31: =SUM(F31:J31) -> -44280 | N31: =IF(O6=0,0,-N_CP_VALOR_ALUGUEL_MENSAL) -> -1230 | O31: =IF(P29=0,0,-N_CP_VALOR_ALUGUEL_MENSAL) -> -1230 | P31: -1230 | Q31: -1230 | R31: -1230 | S31: -1230 | T31: -1230 | U31: -1230 | V31: -1230 | W31: -1230 | X31: -1230 | Y31: -1230 | Z31: -1230 | AA31: -1230 | AB31: -1230 | AC31: -1230 | AD31: -1230 | AE31: -1230 | AF31: -1230 | AG31: -1230 | AH31: -1230 | AI31: -1230 | AJ31: -1230 | AK31: -1230 | AL31: -1230 | AM31: -1230 | AN31: -1230 | AO31: -1230 | AP31: -1230 | AQ31: -1230 | AR31: -1230 | AS31: -1230 | AT31: -1230 | AU31: -1230 | AV31: -1230 | AW31: -1230 | AX31: =IF(AY30=0,0,-N_CP_VALOR_ALUGUEL_MENSAL) -> 0 | AY31: 0 | AZ31: 0 | BA31: 0 | BB31: 0 | BC31: 0 | BD31: 0 | BE31: 0 | BF31: 0 | BG31: 0
C32: 4.1 Imposto de Renda + Contribuição Social | D32: =N_CP_ALIQUOTA_IR -> 0.34 | E32: Anual | F32: 0 | G32: 5018.4 | H32: 5018.4 | I32: 5018.4 | J32: 0 | K32: 15055.2 | N32: =-SUM(N31:N31)*N_CP_ALIQUOTA_IR -> 418.2 | O32: 418.2 | P32: 418.2 | Q32: 418.2 | R32: 418.2 | S32: 418.2 | T32: 418.2 | U32: 418.2 | V32: 418.2 | W32: 418.2 | X32: 418.2 | Y32: 418.2 | Z32: 418.2 | AA32: 418.2 | AB32: 418.2 | AC32: 418.2 | AD32: 418.2 | AE32: 418.2 | AF32: 418.2 | AG32: 418.2 | AH32: 418.2 | AI32: 418.2 | AJ32: 418.2 | AK32: 418.2 | AL32: 418.2 | AM32: 418.2 | AN32: 418.2 | AO32: 418.2 | AP32: 418.2 | AQ32: 418.2 | AR32: 418.2 | AS32: 418.2 | AT32: 418.2 | AU32: 418.2 | AV32: 418.2 | AW32: 418.2 | AX32: 0 | AY32: 0 | AZ32: 0 | BA32: 0 | BB32: 0 | BC32: 0 | BD32: 0 | BE32: 0 | BF32: 0 | BG32: 0
C33: Total Mês | F33: 0 | G33: -9741.6 | H33: -9741.6 | I33: -9741.6 | J33: 0 | K33: =SUM(F33:J33) -> -29224.8 | N33: =+SUM(N31:N32) -> -811.8 | O33: -811.8 | P33: -811.8 | Q33: -811.8 | R33: -811.8 | S33: -811.8 | T33: -811.8 | U33: -811.8 | V33: -811.8 | W33: -811.8 | X33: -811.8 | Y33: -811.8 | Z33: -811.8 | AA33: -811.8 | AB33: -811.8 | AC33: -811.8 | AD33: -811.8 | AE33: -811.8 | AF33: -811.8 | AG33: -811.8 | AH33: -811.8 | AI33: -811.8 | AJ33: -811.8 | AK33: -811.8 | AL33: -811.8 | AM33: -811.8 | AN33: -811.8 | AO33: -811.8 | AP33: -811.8 | AQ33: -811.8 | AR33: -811.8 | AS33: -811.8 | AT33: -811.8 | AU33: -811.8 | AV33: -811.8 | AW33: -811.8 | AX33: 0 | AY33: 0 | AZ33: 0 | BA33: 0 | BB33: 0 | BC33: 0 | BD33: 0 | BE33: 0 | BF33: 0 | BG33: 0

Sheet Dados (hidden)
C1: 1 | D1: 2 | E1: 3 | F1: 4 | G1: 5 | H1: 6 | I1: 7 | J1: 8 | K1: 9 | L1: 10 | M1: 11
A2: Selecionado | B2: Item | C2: Popular Hatch 1.0 Manual (Completo) | D2: Popular Sedan 1.0 Manual (Completo) | E2: Popular Hatch 1.4 Manual (Completo) | F2: Popular Sedan 1.4 Manual (Completo) | G2: Pick-up Leve CS 1.4 | H2: Pick-up Leve CD 1.4 | I2: Utilitário Furgão 1.4 | J2: Executivo Hatch Manual 1.6 | K2: Executivo Sedan Automático 2.0 | L2: Caminhonete CS 4x4 | M2: Caminhonete CD 4x2
A3: =VLOOKUP(B3,$B:$M,CP_ID_MODELO+1,0) -> 40340 | B3: 1.1 Valor de mercado do veículo | C3: 40340 | D3: 44390 | E3: 48040 | F3: 51650 | G3: 46900 | H3: 64266 | I3: 54040 | J3: 73790 | K3: 94300 | L3: 114890 | M3: 135760
A4: =VLOOKUP(B4,$B:$M,CP_ID_MODELO+1,0) -> 0.12 | B4: 1.2 % desconto na compra | C4: 0.12 | D4: 0.12 | E4: 0.12 | F4: 0.12 | G4: 0.12 | H4: 0.12 | I4: 0.08 | J4: 0.08 | K4: 0.08 | L4: 0.08 | M4: 0.08
A6: =VLOOKUP(B6,$B:$M,CP_ID_MODELO+1,0) -> 150 | B6: 1.4 Frete entrega do veículo | C6: 150 | D6: 150 | E6: 150 | F6: 150 | G6: 150 | H6: 150 | I6: 150 | J6: 150 | K6: 150 | L6: 150 | M6: 150
A8: =VLOOKUP(B8,$B:$M,CP_ID_MODELO+1,0) -> 0.04 | B8: 2.1 Seguro - Anual | C8: 0.04 | D8: 0.04 | E8: 0.04 | F8: 0.04 | G8: 0.04 | H8: 0.04 | I8: 0.04 | J8: 0.04 | K8: 0.04 | L8: 0.04 | M8: 0.04
A9: =VLOOKUP(B9,$B:$M,CP_ID_MODELO+1,0) -> 0.045 | B9: 2.2 IPVA + Licenciamento + DPVAT | C9: 0.045 | D9: 0.045 | E9: 0.045 | F9: 0.045 | G9: 0.045 | H9: 0.045 | I9: 0.045 | J9: 0.045 | K9: 0.045 | L9: 0.045 | M9: 0.045
A10: =VLOOKUP(B10,$B:$M,CP_ID_MODELO+1,0) -> 1601.424 | B10: 2.3 Manutenção Preventiva e Corretiva | C10: =IF(C$25=12,C$30,IF(C$25=24,C$35,IF(C$25=36,C$40,0))) -> 1601.424 | D10: 1601.424 | E10: 2147.472 | F10: 2147.472 | G10: 2012.832 | H10: 2012.832 | I10: 2147.472 | J10: 2147.472 | K10: 3482.928 | L10: 6679.008 | M10: 6679.008
A11: =VLOOKUP(B11,$B:$M,CP_ID_MODELO+1,0) -> 1800 | B11: 2.4 Custo administrativo com a gestão da frota | C11: =150*12 -> 1800 | D11: =150*12 -> 1800 | E11: 1800 | F11: 1800 | G11: 1800 | H11: 1800 | I11: 1800 | J11: 1800 | K11: 1800 | L11: 1800 | M11: 1800
A12: =VLOOKUP(B12,$B:$M,CP_ID_MODELO+1,0) -> 484.08 | B12: 2.5 Frota reserva (Locações eventuais) | C12: 484.08 | D12: 532.68 | E12: 576.48 | F12: 619.8 | G12: 562.8 | H12: 771.192 | I12: 648.48 | J12: 885.48 | K12: 1131.6 | L12: 1378.68 | M12: 1629.12
A14: =VLOOKUP(B14,$B:$M,CP_ID_MODELO+1,0) -> 21380 | B14: 3.1 Valor Estimado para a venda do veículo | C14: =IF(C$25=12,C$32,IF(C$25=24,C$37,IF(C$25=36,C$42,0))) -> 21380 | D14: 24230 | E14: 25180 | F14: 26130 | G14: 20430 | H14: 27550 | I14: 23750 | J14: 36100 | K14: 53200 | L14: 42750 | M14: 38950
A15: =VLOOKUP(B15,$B:$M,CP_ID_MODELO+1,0) -> 350 | B15: 3.2 Custos do processo de venda | C15: 350 | D15: 350 | E15: 350 | F15: 350 | G15: 350 | H15: 350 | I15: 350 | J15: 350 | K15: 350 | L15: 350 | M15: 350
A16: =VLOOKUP(B16,$B:$M,CP_ID_MODELO+1,0) -> 710 | B16: 3.3 Manutenção para venda | C16: 710 | D16: 780 | E16: 850 | F16: 910 | G16: 830 | H16: 1130 | I16: 990 | J16: 1360 | K16: 1740 | L16: 2110 | M16: 2500
A17: =VLOOKUP(B17,$B:$M,CP_ID_MODELO+1,0) -> 350 | B17: 3.4 Frete desmobilização do veículo | C17: 350 | D17: 350 | E17: 350 | F17: 350 | G17: 350 | H17: 350 | I17: 350 | J17: 350 | K17: 350 | L17: 350 | M17: 350
A19: =VLOOKUP(B19,$B:$M,CP_ID_MODELO+1,0) -> 0.07 | B19: 4.1 Custo Oportunidade | C19: 0.07 | D19: 0.07 | E19: 0.07 | F19: 0.07 | G19: 0.07 | H19: 0.07 | I19: 0.07 | J19: 0.07 | K19: 0.07 | L19: 0.07 | M19: 0.07
A20: 0.2 | B20: 4.2 Depreciação Contábil (Base Receita Federal)
A21: =VLOOKUP(B21,$B:$M,CP_ID_MODELO+1,0) -> 0.0925 | B21: 4.3 PIS / Cofins - Anual | C21: 0.0925 | D21: 0.0925 | E21: 0.0925 | F21: 0.0925 | G21: 0.0925 | H21: 0.0925 | I21: 0.0925 | J21: 0.0925 | K21: 0.0925 | L21: 0.0925 | M21: 0.0925
A22: =VLOOKUP(B22,$B:$M,CP_ID_MODELO+1,0) -> 0 | B22: 4.2 Contribuição Social
A23: =VLOOKUP(B23,$B:$M,CP_ID_MODELO+1,0) -> 0.34 | B23: 4.5 Alíquota de Imposto de Renda + Constribuição Social | C23: 0.34 | D23: 0.34 | E23: 0.34 | F23: 0.34 | G23: 0.34 | H23: 0.34 | I23: 0.34 | J23: 0.34 | K23: 0.34 | L23: 0.34 | M23: 0.34
A25: =VLOOKUP(B25,$B:$M,CP_ID_MODELO+1,0) -> 36 | B25: Prazo do Contrato | C25: =N_CP_PRAZO_CONTRATO -> 36 | D25: 36 | E25: 36 | F25: 36 | G25: 36 | H25: 36 | I25: 36 | J25: 36 | K25: 36 | L25: 36 | M25: 36
A26: =VLOOKUP(B26,$B:$M,CP_ID_MODELO+1,0) -> 1100 | B26: Valor do Aluguel | C26: =IF(C$25=12,C$31,IF(C$25=24,C$36,IF(C$25=36,C$41,0))) -> 1100 | D26: 1160 | E26: 1260 | F26: 1350 | G26: 1350 | H26: 1870 | I26: 1650 | J26: 1980 | K26: 2780 | L26: 3930 | M26: 4740
C29: 12 | D29: 12 | E29: 12 | F29: 12 | G29: 12 | H29: 12 | I29: 12 | J29: 12 | K29: 12 | L29: 12 | M29: 12
B30: Manutenção Preventiva e Corretiva | C30: 645.984 | D30: 645.984 | E30: 770.256 | F30: 770.256 | G30: 656.352 | H30: 656.352 | I30: 770.256 | J30: 770.256 | K30: 1110.528 | L30: 5348.736 | M30: 5348.736
B31: Valor do Aluguel | C31: 1230 | D31: 1310 | E31: 1500 | F31: 1700 | G31: 1880 | H31: 2840 | I31: 2360 | J31: 2680 | K31: 3930 | L31: 5790 | M31: 7690
B32: Valor Estimado para a venda do veículo | C32: 27550 | D32: 30400 | E32: 30400 | F32: 31350 | G32: 24230 | H32: 32780 | I32: 29450 | J32: 44650 | K32: 63650 | L32: 57000 | M32: 55100
C34: 24 | D34: 24 | E34: 24 | F34: 24 | G34: 24 | H34: 24 | I34: 24 | J34: 24 | K34: 24 | L34: 24 | M34: 24
B35: Manutenção Preventiva e Corretiva | C35: 1589.04 | D35: 1589.04 | E35: 2164.752 | F35: 2164.752 | G35: 1903.392 | H35: 1903.392 | I35: 2164.752 | J35: 2164.752 | K35: 2316.528 | L35: 6373.296 | M35: 6373.296
B36: Valor do Aluguel | C36: 1210 | D36: 1280 | E36: 1370 | F36: 1490 | G36: 1500 | H36: 2100 | I36: 1840 | J36: 2190 | K36: 3100 | L36: 4480 | M36: 5490
B37: Valor Estimado para a venda do veículo | C37: 23280 | D37: 26130 | E37: 27550 | F37: 28500 | G37: 22330 | H37: 30400 | I37: 26600 | J37: 39900 | K37: 57950 | L37: 47500 | M37: 45600
C39: 36 | D39: 36 | E39: 36 | F39: 36 | G39: 36 | H39: 36 | I39: 36 | J39: 36 | K39: 36 | L39: 36 | M39: 36
B40: Manutenção Preventiva e Corretiva | C40: 1601.424 | D40: 1601.424 | E40: 2147.472 | F40: 2147.472 | G40: 2012.832 | H40: 2012.832 | I40: 2147.472 | J40: 2147.472 | K40: 3482.928 | L40: 6679.008 | M40: 6679.008
B41: Valor do Aluguel | C41: 1100 | D41: 1160 | E41: 1260 | F41: 1350 | G41: 1350 | H41: 1870 | I41: 1650 | J41: 1980 | K41: 2780 | L41: 3930 | M41: 4740
B42: Valor Estimado para a venda do veículo | C42: 21380 | D42: 24230 | E42: 25180 | F42: 26130 | G42: 20430 | H42: 27550 | I42: 23750 | J42: 36100 | K42: 53200 | L42: 42750 | M42: 38950
B45: Modelo Referencia | C45: Onix Joy 1.0 4P | D45: Prisma Joy 1.0 4P | E45: Onix LT MT 1.4 4P | F45: Prisma LT MT 1.4 4P | G45: Strada CS Working 1.4 2P | H45: Strada CD Working 1.4 2P | I45: Fiorino Evo 1.4 2P | J45: Focus Hatch SE MT 1.6 4P | K45: Corolla XEi AT 2.0 4P | L45: S10 CS LS MT 4x4 2.8 2P | M45: S10 CD LT MT 4x2 2.8 4P

Sheet Textos_Ajuda (hidden)
A1: Selecao | B1: Item | C1: Nome do Item | D1: Texto Ajuda | E1: Link | F1: Link_Amigavel | G1: Ano 1 | H1: Ano 2 | I1: Ano 3 | J1: Ano 4
A2: 1 | B2: 2.1 Contratação de Seguro - Anual | C2: Seguro Anual | D2: Custo de apólices de seguro que protegem o carro, passageiros e terceiros. A média de Seguro pode chegar até 7% do valor do veículo, sem contar a Franquia. Porém, para o presente estudo estamos considerando 4%, visto que as Seguradoras concedem descontos para empresas. Conforme cálculo acima, o valor do seguro apresenta uma redução anual em função da desvalorização do veículo. | E2: http://quatrorodas.abril.com.br/autoservico/seguros/mais.shtml | F2: Veja o comparativo de Seguro da Quadro Rodas | G2: ='3.Fluxo_Caixa'!N11*-1 -> 1419.968 | H2: ='3.Fluxo_Caixa'!$Z$11*-1 -> 1313.978667 | I2: ='3.Fluxo_Caixa'!AL11*-1 -> 1207.989333
A3: 2 | B3: 2.2 IPVA + Licenciamento - Anual | C3: IPVA + Licenciamento | D3: Refere-se ao IPVA, que em São Paulo tem um custo de 4% do valor do veículo, mais a taxa anual de licenciamento (CRLV e DPVAT), que gira em torno de 0,5% do valor do veículo. Conforme cálculo acima, o valor do IPVA + Licenciamento apresenta uma redução anual em função da desvalorização do veículo. | E3: http://www.carrosnaweb.com.br/ipva.asp | F3: Valor IPVA nos estados | G3: ='3.Fluxo_Caixa'!N12*-1 -> 1597.464 | H3: ='3.Fluxo_Caixa'!Z12*-1 -> 1478.226 | I3: ='3.Fluxo_Caixa'!AL12*-1 -> 1358.988
A4: 3 | B4: 2.3 Manutenção Preventiva e Corretiva - Mensal | C4: Manutenção Preventiva e Corretiva | D4: Na manutenção estão incluídas todas as despesas referentes à mão-de-obra, serviços e peças necessárias nas manutenções preventivas e corretivas por desgate natural do carro. Este item também inclui a troca pneus a cada 40.000km. As estimativas de custos apresentadas foram baseadas nas recomendações do fabricante. | E4: - | G4: =SUM('3.Fluxo_Caixa'!N13:Y13)*-1 -> 645.984 | H4: =SUM('3.Fluxo_Caixa'!Z13:AK13)*-1 -> 645.984 | I4: =SUM('3.Fluxo_Caixa'!AL13:AW13)*-1 -> 645.984
A5: 4 | B5: 2.4 Custo administrativo com a gestão da frota - Mensal | C5: Custo administrativo gestão da frota | D5: Despesas referentes a gestão da frota, como: o custo de mão-de-obra e estrutura física para a realização de controles de compra do carro, contratação de seguros e de recursos financeiros, processamento do pagamento de notas fiscais referentes a peças, manutenções, seguros, etc. | E5: - | G5: =SUM('3.Fluxo_Caixa'!N14:Y14)*-1 -> 1800 | H5: =SUM('3.Fluxo_Caixa'!Z14:AK14)*-1 -> 1800 | I5: =SUM('3.Fluxo_Caixa'!AL14:AW14)*-1 -> 1800
A6: 5 | B6: 2.5 Frota reserva (Locações eventuais) [ % sobre o item 1.3 ] - Mensal | C6: Frota reserva | D6: Considera a locação de carro reserva para manter um veículo em prontidão nos casos de acidente, pane, manutenção, revisão, roubo, furto, etc., evitando-se, assim, que a empresa tenha prejuízos operacionais. No presente estudo, consideramos uma média de 4 diárias durante o ano. | E6: - | G6: =SUM('3.Fluxo_Caixa'!N15:Y15)*-1 -> 484.08 | H6: =SUM('3.Fluxo_Caixa'!Z15:AK15)*-1 -> 484.08 | I6: =SUM('3.Fluxo_Caixa'!AL15:AW15)*-1 -> 484.08
A7: 6 | B7: 3.1 Valor Estimado para a venda do veículo - Final Período | C7: Valor estimado de venda | D7: Valor que dará entrada no caixa, no ato da venda do carro, considerando a depreciação média do mercado. Deve-se levar em conta que geralmente as empresas vendem seus carros no Atacado, o que reduz o valor do automóvel. | E7: - | H7: =IF(N_CP_PRAZO_CONTRATO=12,N_CP_VALOR_ESTIMADO_VENDA_VEICULO,0) -> 0 | I7: =IF(N_CP_PRAZO_CONTRATO=24,N_CP_VALOR_ESTIMADO_VENDA_VEICULO,0) -> 0 | J7: =IF(N_CP_PRAZO_CONTRATO=36,N_CP_VALOR_ESTIMADO_VENDA_VEICULO,0) -> 27550
A8: 7 | B8: 3.2 Custos do processo de venda - Final Período | C8: Custos do processo de venda | D8: Neste item entra despesas relacionadas a venda do veículo, como: aluguel de pátio, gastos com leilão, anúncio em sites etc. | E8: - | H8: ='3.Fluxo_Caixa'!Z16*-1 -> 0 | I8: ='3.Fluxo_Caixa'!AL16*-1 -> 0 | J8: ='3.Fluxo_Caixa'!AX16*-1 -> 350
A9: 8 | B9: 3.3 Manutenção para venda - Final Período | C9: Manutenção para venda | D9: Refere-se ao valor desembolsado para reparo/preparação do veículo após sua utilização, visando facilitar a venda pelo preço projetado. Caso não seja realizado esse reparo/preparação, deve-se considerar um desconto técnico para a venda. | E9: - | G9: ='3.Fluxo_Caixa'!Y17*-1 -> 0 | H9: ='3.Fluxo_Caixa'!AK17*-1 -> 0 | I9: ='3.Fluxo_Caixa'!AW17*-1 -> 710
A10: 9 | B10: 3.4 Frete desmobilização do veículo - Final Período | C10: Frete para venda | D10: Dependendo do canal de venda, será necessário custear o frete para a venda do veículo. | E10: - | H10: ='3.Fluxo_Caixa'!Y18*-1 -> 0 | I10: ='3.Fluxo_Caixa'!AK18*-1 -> 0 | J10: ='3.Fluxo_Caixa'!AW18*-1 -> 350
A11: 10 | B11: 4.1 Imposto de Renda + Contribuição Social - Anual | C11: IR+CS | D11: É a taxa média de imposto de renda (25%) e constribuição social (9%), aplicada sobre o total das despesas que a empresa recolhe mensalmente. | E11: -
A12: 11 | B12: 4.2 Custo Oportunidade [ % sobre o item 1.3 ] - Anual | C12: Custo Oportunidade | D12: No caso de compra a vista do automóvel, deve-se considerar o Custo de Oportunidade, que refere-se à taxa de juros que a empresa estaria remunerando seu capital se o mesmo não estivesse imobilizado em frota. Para o Custo de Oportunidade, estamos considerando a taxa de juros dos Títulos Públicos. Se a empresa optar pelo financiamento, deve-se levar em conta os juros da operação. | E12: http://www3.tesouro.gov.br/tesouro_direto/consulta_titulos_novosite/consultatitulos.asp | F12: Preços e taxas dos títulos públicos disponíveis para compra | G12: ='3.Fluxo_Caixa'!G22*-1 -> 2408.611655 | H12: ='3.Fluxo_Caixa'!H22*-1 -> 2408.611655 | I12: ='3.Fluxo_Caixa'!I22*-1 -> 2408.611655
A13: 12 | B13: Valor mensal do aluguel | C13: Valor mensal do aluguel | D13: Tarifa mensal da locação do veículo | G13: =N_CP_VALOR_ALUGUEL_MENSAL*12 -> 14760 | H13: =N_CP_VALOR_ALUGUEL_MENSAL*12 -> 14760 | I13: =N_CP_VALOR_ALUGUEL_MENSAL*12 -> 14760

Sheet aux (hidden)
B2: Modelo | E2: Prazo | I2: Controles | L2: Campos Diversos | R2: Referencias
B4: # | C4: Modelo | E4: # | F4: Prazo | I4: ID Modelo | J4: 1 | L4: ID Modelo | M4: 3 | R4: http://exame.abril.com.br/seu-dinheiro/ferramentas/quanto-custa-manter-um-carro/
B5: 1 | C5: =IFERROR(HLOOKUP(TBL_MODELO[[#This Row],['#]],Dados!$1:$2,2,0),"-") -> Popular Hatch 1.0 Manual (Completo) | E5: 1 | F5: 12 meses | I5: Valor Modelo | J5: =VLOOKUP(CP_ID_MODELO,TBL_MODELO[],2,0) -> Popular Hatch 1.0 Manual (Completo) | L5: Valor Modelo | M5: =VLOOKUP(CP_ID_MODELO,TBL_MODELO[],2,0) -> Popular Hatch 1.0 Manual (Completo) | R5: http://bestcars.uol.com.br/troca.htm
B6: 2 | C6: =IFERROR(HLOOKUP(TBL_MODELO[[#This Row],['#]],Dados!$1:$2,2,0),"-") -> Popular Sedan 1.0 Manual (Completo) | E6: 2 | F6: 24 meses | L6: Campo gráfico | M6: =IF(OR(CP_NOME_EMPRESA="« Informe aqui o nome da Empresa »",CP_NOME_EMPRESA=""),"Terceirizando a frota, sua empresa economiza:","Terceirizando a frota, "&CP_NOME_EMPRESA&" economiza:") -> Terceirizando a frota, sua empresa economiza: | R6: http://classificados.folha.uol.com.br/veiculos/2013/09/1335217-gastos-com-carro-nos-3-primeiros-anos-de-uso-equivalem-ao-preco-de-outro-novo.shtml
B7: 3 | C7: =IFERROR(HLOOKUP(TBL_MODELO[[#This Row],['#]],Dados!$1:$2,2,0),"-") -> Popular Hatch 1.4 Manual (Completo) | E7: 3 | F7: 36 meses | L7: Campo eixo | M7: ="Valor Investido em "&N_CP_PRAZO_CONTRATO&" meses" -> Valor Investido em 36 meses | R7: http://www.sindilocpr.com.br/arquivos/Resumo_Estudo_Terceirizacao.pdf
B8: 4 | C8: =IFERROR(HLOOKUP(TBL_MODELO[[#This Row],['#]],Dados!$1:$2,2,0),"-") -> Popular Sedan 1.4 Manual (Completo) | I8: ID Modelo | J8: 3 | R8: http://www.receita.fazenda.gov.br/pessoajuridica/dipj/2005/pergresp2005/pr360a373.htm
B9: 5 | C9: =IFERROR(HLOOKUP(TBL_MODELO[[#This Row],['#]],Dados!$1:$2,2,0),"-") -> Pick-up Leve CS 1.4 | I9: Valor Prazo | J9: =LEFT(VLOOKUP(CP_ID_PRAZO,TBL_PRAZO[],2,0),2)*1 -> 36
B10: 6 | C10: =IFERROR(HLOOKUP(TBL_MODELO[[#This Row],['#]],Dados!$1:$2,2,0),"-") -> Pick-up Leve CD 1.4
B11: 7 | C11: =IFERROR(HLOOKUP(TBL_MODELO[[#This Row],['#]],Dados!$1:$2,2,0),"-") -> Utilitário Furgão 1.4 | I11: Seleção Item | J11: 1
B12: 8 | C12: =IFERROR(HLOOKUP(TBL_MODELO[[#This Row],['#]],Dados!$1:$2,2,0),"-") -> Executivo Hatch Manual 1.6
B13: 9 | C13: =IFERROR(HLOOKUP(TBL_MODELO[[#This Row],['#]],Dados!$1:$2,2,0),"-") -> Executivo Sedan Automático 2.0
